[Event "*** Titled Tuesday Blitz"]
[Site "Chess.com"]
[Date "2018.12.04"]
[Round "8"]
[White "AsaHoffmann"]
[Black "Bryakin_Mikhail"]
[Result "1/2-1/2"]
[WhiteElo "2214"]
[BlackElo "2711"]
[TimeControl "180+2"]
[EndTime "14:54:03 PST"]
[Termination "Game drawn by agreement"]

1. d4 {[%clk 0:02:49.6]} 1... d5 {[%clk 0:03:00]} 2. Bg5 {[%clk 0:02:49.1]} 2...
Qd6 {[%clk 0:02:50]} 3. Qd2 {[%clk 0:02:48.3]} 3... Nf6 {[%clk 0:02:50.8]} 4.
Nc3 {[%clk 0:02:48.3]} 4... a6 {[%clk 0:02:50.3]} 5. Nf3 {[%clk 0:02:48.5]} 5...
Bf5 {[%clk 0:02:50.5]} 6. Bf4 {[%clk 0:02:49.1]} 6... Qd8 {[%clk 0:02:47.8]} 7.
e3 {[%clk 0:02:48.3]} 7... e6 {[%clk 0:02:48.9]} 8. a3 {[%clk 0:02:48.9]} 8...
Bd6 {[%clk 0:02:50.2]} 9. Ne5 {[%clk 0:02:48.6]} 9... h6 {[%clk 0:02:49.5]} 10.
Be2 {[%clk 0:02:49]} 10... Nbd7 {[%clk 0:02:50.4]} 11. O-O {[%clk 0:02:48.8]}
11... O-O {[%clk 0:02:51.3]} 12. f3 {[%clk 0:02:46.7]} 12... Qe7 {[%clk
0:02:49.2]} 13. g4 {[%clk 0:02:45.8]} 13... Bh7 {[%clk 0:02:49.3]} 14. h3 {[%clk
0:02:46.7]} 14... c5 {[%clk 0:02:49]} 15. Bd3 {[%clk 0:02:46.9]} 15... Bxd3
{[%clk 0:02:49.1]} 16. Qxd3 {[%clk 0:02:47.4]} 16... b5 {[%clk 0:02:40.7]} 17.
Ne2 {[%clk 0:02:46.9]} 17... Rac8 {[%clk 0:02:35.1]} 18. c3 {[%clk 0:02:47.6]}
18... Nh7 {[%clk 0:02:30.5]} 19. Rae1 {[%clk 0:02:45.2]} 19... Nxe5 {[%clk
0:02:24.1]} 20. Bxe5 {[%clk 0:02:44.8]} 20... Bxe5 {[%clk 0:02:18.4]} 21. dxe5
{[%clk 0:02:45.6]} 21... f6 {[%clk 0:02:14.2]} 22. exf6 {[%clk 0:02:44.8]} 22...
Rxf6 {[%clk 0:02:12.2]} 23. f4 {[%clk 0:02:44.8]} 23... Rd8 {[%clk 0:02:02]} 24.
Ng3 {[%clk 0:02:44.8]} 24... e5 {[%clk 0:01:56]} 25. Nf5 {[%clk 0:02:44]} 25...
Qe6 {[%clk 0:01:54.4]} 26. Rd1 {[%clk 0:02:37.8]} 26... e4 {[%clk 0:01:49.8]}
27. Qe2 {[%clk 0:02:32.1]} 27... Nf8 {[%clk 0:01:12.6]} 28. Rd2 {[%clk
0:02:31.4]} 28... Nd7 {[%clk 0:00:50.7]} 29. Rxd5 {[%clk 0:02:26.5]} 29... Rxf5
{[%clk 0:00:27.3]} 30. Rxf5 {[%clk 0:02:26.1]} 30... g6 {[%clk 0:00:28.6]} 31.
Re5 {[%clk 0:02:09.7]} 31... Nxe5 {[%clk 0:00:26.4]} 32. fxe5 {[%clk 0:02:10.4]}
32... Qxe5 {[%clk 0:00:27.6]} 33. Qf2 {[%clk 0:02:10.2]} 33... Qe6 {[%clk
0:00:20.2]} 34. Qf6 {[%clk 0:02:07.9]} 34... Qxf6 {[%clk 0:00:19.2]} 35. Rxf6
{[%clk 0:02:07.8]} 35... Kg7 {[%clk 0:00:20.7]} 36. Rxa6 {[%clk 0:02:07.4]}
36... Rd2 {[%clk 0:00:18.9]} 37. b3 {[%clk 0:02:04.6]} 37... Rd3 {[%clk
0:00:19.5]} 38. a4 {[%clk 0:02:00.7]} 38... Rxc3 {[%clk 0:00:18.3]} 39. axb5
{[%clk 0:01:58.7]} 39... Rxb3 {[%clk 0:00:19.6]} 40. b6 {[%clk 0:01:51.9]} 40...
Rxe3 {[%clk 0:00:20]} 41. Ra7+ {[%clk 0:01:42.2]} 41... Kf6 {[%clk 0:00:20.4]}
42. h4 {[%clk 0:01:42.5]} 42... Rb3 {[%clk 0:00:16.4]} 43. b7 {[%clk 0:01:38.7]}
43... Ke5 {[%clk 0:00:15.9]} 44. Kf2 {[%clk 0:01:34.8]} 44... Kd4 {[%clk
0:00:17]} 45. Ke2 {[%clk 0:01:30.5]} 45... Rb2+ {[%clk 0:00:17.7]} 46. Kd1
{[%clk 0:01:31]} 46... c4 {[%clk 0:00:18]} 47. Ra6 {[%clk 0:01:27.8]} 47... Rxb7
{[%clk 0:00:17.5]} 48. Rxg6 {[%clk 0:01:27.9]} 48... e3 {[%clk 0:00:11.7]} 49.
Rd6+ {[%clk 0:01:26.8]} 49... Kc3 {[%clk 0:00:13]} 50. Ke2 {[%clk 0:01:27]}
50... Rg7 {[%clk 0:00:08.3]} 51. Rxh6 {[%clk 0:01:23.8]} 51... Rxg4 {[%clk
0:00:09.7]} 52. Kxe3 {[%clk 0:01:24.6]} 52... Rg1 {[%clk 0:00:10]} 53. Kf3
{[%clk 0:01:23.8]} 53... Kd4 {[%clk 0:00:05.7]} 54. Rc6 {[%clk 0:01:20]} 54...
c3 {[%clk 0:00:04.8]} 55. h5 {[%clk 0:01:17.4]} 55... Kd3 {[%clk 0:00:04.6]} 56.
Kf4 {[%clk 0:01:17.3]} 56... c2 {[%clk 0:00:02.4]} 57. h6 {[%clk 0:01:16.5]}
57... c1=Q+ {[%clk 0:00:03.5]} 58. Rxc1 {[%clk 0:01:16.3]} 58... Rxc1 {[%clk
0:00:05.4]} 59. Kg5 {[%clk 0:01:16.7]} 59... Ke4 {[%clk 0:00:06.1]} 60. h7
{[%clk 0:01:16.1]} 60... Rc8 {[%clk 0:00:06.8]} 61. Kg6 {[%clk 0:01:16.8]} 61...
Ke5 {[%clk 0:00:07.8]} 62. Kg7 {[%clk 0:01:17.6]} 62... Rc7+ {[%clk 0:00:09.2]}
63. Kg6 {[%clk 0:01:17.9]} 63... Rc8 {[%clk 0:00:09.9]} 64. Kg7 {[%clk
0:01:16.5]} 1/2-1/2

[Event "*** Titled Tuesday Blitz"]
[Site "Chess.com"]
[Date "2018.12.04"]
[Round "8"]
[White "Naruto-K"]
[Black "ENEASZ"]
[Result "1-0"]
[WhiteElo "2456"]
[BlackElo "2565"]
[TimeControl "180+2"]
[EndTime "14:54:10 PST"]
[Termination "Naruto-K won by resignation"]

1. d4 {[%clk 0:03:01.9]} 1... d6 {[%clk 0:03:01.9]} 2. Bf4 {[%clk 0:03:02.5]}
2... h6 {[%clk 0:03:00.2]} 3. Nf3 {[%clk 0:02:58.6]} 3... Nf6 {[%clk 0:03:00.9]}
4. e3 {[%clk 0:02:59.3]} 4... Nh5 {[%clk 0:03:01.2]} 5. Bg3 {[%clk 0:02:58.8]}
5... Nxg3 {[%clk 0:03:02.4]} 6. hxg3 {[%clk 0:03:00.7]} 6... g6 {[%clk 0:03:04]}
7. Nbd2 {[%clk 0:03:00.6]} 7... Bg7 {[%clk 0:03:05.6]} 8. Bd3 {[%clk 0:03:01.6]}
8... b6 {[%clk 0:03:07.2]} 9. O-O {[%clk 0:03:02.1]} 9... Bb7 {[%clk 0:03:08.5]}
10. c3 {[%clk 0:03:03.6]} 10... Nd7 {[%clk 0:03:10]} 11. a4 {[%clk 0:03:04.7]}
11... a6 {[%clk 0:03:09.9]} 12. e4 {[%clk 0:03:04.5]} 12... e5 {[%clk
0:03:10.6]} 13. dxe5 {[%clk 0:03:03.1]} 13... dxe5 {[%clk 0:03:05.3]} 14. Qe2
{[%clk 0:02:59]} 14... O-O {[%clk 0:03:05.7]} 15. Rfd1 {[%clk 0:03:00]} 15...
Qe7 {[%clk 0:03:06.5]} 16. Nc4 {[%clk 0:02:53.4]} 16... Nc5 {[%clk 0:03:05.2]}
17. Bc2 {[%clk 0:02:54.4]} 17... a5 {[%clk 0:03:06.2]} 18. Na3 {[%clk
0:02:43.9]} 18... Ba6 {[%clk 0:03:06.6]} 19. Qe3 {[%clk 0:02:44.7]} 19... Rad8
{[%clk 0:03:06.5]} 20. Nb5 {[%clk 0:02:45.1]} 20... c6 {[%clk 0:03:04.4]} 21.
Na3 {[%clk 0:02:45.3]} 21... Kh7 {[%clk 0:02:58.3]} 22. b4 {[%clk 0:02:39.8]}
22... axb4 {[%clk 0:02:50.5]} 23. cxb4 {[%clk 0:02:40.8]} 23... Ne6 {[%clk
0:02:51.4]} 24. Qxb6 {[%clk 0:02:35.3]} 24... Be2 {[%clk 0:02:51.9]} 25. Rxd8
{[%clk 0:02:34.8]} 25... Rxd8 {[%clk 0:02:53.8]} 26. a5 {[%clk 0:01:59.8]} 26...
Nd4 {[%clk 0:02:53.3]} 27. Ne1 {[%clk 0:01:51.1]} 27... Bf8 {[%clk 0:02:27.2]}
28. Rb1 {[%clk 0:01:47.5]} 28... Qd6 {[%clk 0:02:22]} 29. Qa7 {[%clk 0:01:33]}
29... Kg7 {[%clk 0:02:17.2]} 30. Bb3 {[%clk 0:01:12]} 30... Rd7 {[%clk
0:02:04.3]} 31. Qb6 {[%clk 0:01:04.8]} 31... Qxb4 {[%clk 0:02:00.6]} 32. Nac2
{[%clk 0:00:38.7]} 32... Qc3 {[%clk 0:01:48]} 33. Nxd4 {[%clk 0:00:22.5]} 33...
exd4 {[%clk 0:01:49.9]} 34. a6 {[%clk 0:00:23.4]} 34... d3 {[%clk 0:00:56.8]}
35. a7 {[%clk 0:00:23.9]} 35... d2 {[%clk 0:00:57.3]} 36. a8=Q {[%clk
0:00:24.6]} 36... Bc5 {[%clk 0:00:44.3]} 37. Qbb8 {[%clk 0:00:24.1]} 37... Bxf2+
{[%clk 0:00:44.1]} 38. Kh2 {[%clk 0:00:15.8]} 38... Qxg3+ {[%clk 0:00:43.6]} 39.
Qxg3 {[%clk 0:00:16.2]} 39... Bxg3+ {[%clk 0:00:18.1]} 40. Kxg3 {[%clk
0:00:18.1]} 40... dxe1=Q+ {[%clk 0:00:18.7]} 41. Rxe1 {[%clk 0:00:12.3]} 41...
Rd2 {[%clk 0:00:19.6]} 42. Qa1+ {[%clk 0:00:11.3]} 42... Kh7 {[%clk 0:00:19]}
43. Qc3 {[%clk 0:00:12]} 43... Rd3+ {[%clk 0:00:18]} 44. Qxd3 {[%clk 0:00:13.3]}
44... Bxd3 {[%clk 0:00:19.9]} 45. Bxf7 {[%clk 0:00:14.4]} 45... Kg7 {[%clk
0:00:21]} 46. Bb3 {[%clk 0:00:15.4]} 46... Kf6 {[%clk 0:00:22.4]} 47. e5+ {[%clk
0:00:16.6]} 47... Ke7 {[%clk 0:00:23.9]} 48. Rc1 {[%clk 0:00:17.4]} 48... Be4
{[%clk 0:00:24.2]} 49. Ba4 {[%clk 0:00:17.6]} 49... Ke6 {[%clk 0:00:24.1]} 50.
Bxc6 {[%clk 0:00:18.2]} 50... Bf5 {[%clk 0:00:24.7]} 51. Re1 {[%clk 0:00:18.5]}
51... g5 {[%clk 0:00:26.3]} 52. Bf3 {[%clk 0:00:19.3]} 52... Bg6 {[%clk
0:00:24.8]} 53. Bg4+ {[%clk 0:00:20.5]} 53... Kd5 {[%clk 0:00:26.3]} 54. e6
{[%clk 0:00:21.5]} 54... h5 {[%clk 0:00:27.9]} 55. Bf3+ {[%clk 0:00:20.7]} 55...
Kd6 {[%clk 0:00:28.4]} 56. e7 {[%clk 0:00:21.9]} 56... Be8 {[%clk 0:00:28.5]}
57. Bxh5 {[%clk 0:00:21.9]} 57... Bxh5 {[%clk 0:00:29]} 58. e8=Q {[%clk
0:00:23.8]} 1-0

[Event "*** Titled Tuesday Blitz"]
[Site "Chess.com"]
[Date "2018.12.04"]
[Round "8"]
[White "theblitzchamp"]
[Black "VincentBlom"]
[Result "0-1"]
[WhiteElo "2687"]
[BlackElo "2531"]
[TimeControl "180+2"]
[EndTime "14:54:11 PST"]
[Termination "VincentBlom won by checkmate"]

1. e4 {[%clk 0:03:01.9]} 1... c6 {[%clk 0:02:52.3]} 2. d4 {[%clk 0:03:01.8]}
2... d5 {[%clk 0:02:53.7]} 3. Nc3 {[%clk 0:03:03.7]} 3... dxe4 {[%clk
0:02:54.7]} 4. Nxe4 {[%clk 0:03:05.6]} 4... Bf5 {[%clk 0:02:56.2]} 5. Ng3 {[%clk
0:03:06.9]} 5... Bg6 {[%clk 0:02:57.8]} 6. Nh3 {[%clk 0:03:08.6]} 6... e6 {[%clk
0:02:58.3]} 7. Nf4 {[%clk 0:03:09.6]} 7... Bd6 {[%clk 0:02:59.9]} 8. h4 {[%clk
0:03:09.8]} 8... Bxf4 {[%clk 0:03:00.9]} 9. Bxf4 {[%clk 0:03:10.5]} 9... h6
{[%clk 0:02:59.6]} 10. h5 {[%clk 0:03:11.4]} 10... Bh7 {[%clk 0:03:00.3]} 11. c3
{[%clk 0:03:13]} 11... Nf6 {[%clk 0:03:00.8]} 12. Bd3 {[%clk 0:03:13.8]} 12...
Bxd3 {[%clk 0:03:00.9]} 13. Qxd3 {[%clk 0:03:14.5]} 13... Nbd7 {[%clk
0:03:02.6]} 14. O-O-O {[%clk 0:03:15.5]} 14... Qa5 {[%clk 0:02:55.6]} 15. Kb1
{[%clk 0:03:15.2]} 15... Nd5 {[%clk 0:02:53.5]} 16. Bd2 {[%clk 0:03:14.4]} 16...
Qc7 {[%clk 0:02:48.6]} 17. Ka1 {[%clk 0:03:13.6]} 17... O-O-O {[%clk 0:02:45.5]}
18. Qf3 {[%clk 0:03:11.1]} 18... N7f6 {[%clk 0:02:43.4]} 19. Rhe1 {[%clk
0:03:05.5]} 19... Nb6 {[%clk 0:02:42.1]} 20. Bf4 {[%clk 0:03:05.4]} 20... Qd7
{[%clk 0:02:42.8]} 21. Be5 {[%clk 0:03:06.3]} 21... Qd5 {[%clk 0:02:43]} 22.
Qxd5 {[%clk 0:02:35.1]} 22... cxd5 {[%clk 0:02:12.3]} 23. Rd3 {[%clk 0:02:35.3]}
23... Ne8 {[%clk 0:02:01.9]} 24. Rf3 {[%clk 0:02:27.9]} 24... f6 {[%clk
0:01:51.2]} 25. Bf4 {[%clk 0:02:28.5]} 25... Kd7 {[%clk 0:01:41]} 26. Rfe3
{[%clk 0:02:27.5]} 26... e5 {[%clk 0:01:39.9]} 27. dxe5 {[%clk 0:02:28.3]} 27...
Nc4 {[%clk 0:01:41.5]} 28. Rd3 {[%clk 0:02:11.6]} 28... Kc6 {[%clk 0:01:42.4]}
29. b3 {[%clk 0:02:06.2]} 29... Nxe5 {[%clk 0:01:41.1]} 30. Bxe5 {[%clk
0:02:07]} 30... fxe5 {[%clk 0:01:43]} 31. Rxe5 {[%clk 0:02:07.7]} 31... Nf6
{[%clk 0:01:44]} 32. Nf5 {[%clk 0:02:07]} 32... Rhe8 {[%clk 0:01:43.8]} 33. Nd4+
{[%clk 0:01:22.5]} 33... Kd6 {[%clk 0:01:32.2]} 34. Rf5 {[%clk 0:01:22.6]} 34...
Re5 {[%clk 0:01:12.5]} 35. Nb5+ {[%clk 0:00:55.7]} 35... Ke6 {[%clk 0:01:12.4]}
36. Nc7+ {[%clk 0:00:53.1]} 36... Kxf5 {[%clk 0:01:11]} 37. Kb2 {[%clk
0:00:51.3]} 37... Re2+ {[%clk 0:01:10]} 38. Ka3 {[%clk 0:00:52.2]} 38... Rxf2
{[%clk 0:01:10.7]} 39. Nb5 {[%clk 0:00:53.5]} 39... Rxg2 {[%clk 0:01:01.4]} 40.
Nd4+ {[%clk 0:00:54.3]} 40... Ke4 {[%clk 0:00:56.6]} 41. Rd1 {[%clk 0:00:53.4]}
41... Re8 {[%clk 0:00:37.5]} 42. Re1+ {[%clk 0:00:48.8]} 42... Kd3 {[%clk
0:00:38.6]} 43. Rc1 {[%clk 0:00:48.5]} 43... a6 {[%clk 0:00:32]} 44. Nf5 {[%clk
0:00:47.8]} 44... Kd2 {[%clk 0:00:30]} 45. Rb1 {[%clk 0:00:48]} 45... Kxc3
{[%clk 0:00:30.6]} 46. Rc1+ {[%clk 0:00:49.3]} 46... Kd2 {[%clk 0:00:31.5]} 47.
Rb1 {[%clk 0:00:50.6]} 47... Ree2 {[%clk 0:00:32.7]} 48. Nd4 {[%clk 0:00:45.4]}
48... Kc3 {[%clk 0:00:33.1]} 49. Nxe2+ {[%clk 0:00:42.4]} 49... Rxe2 {[%clk
0:00:35]} 50. Rc1+ {[%clk 0:00:42.5]} 50... Rc2 {[%clk 0:00:35.5]} 51. Rg1
{[%clk 0:00:43.4]} 51... Nxh5 {[%clk 0:00:33.2]} 52. Rh1 {[%clk 0:00:44.4]}
52... Nf4 {[%clk 0:00:33.9]} 53. Rf1 {[%clk 0:00:43.9]} 53... g5 {[%clk
0:00:34.9]} 54. Rh1 {[%clk 0:00:44.4]} 54... d4 {[%clk 0:00:36.1]} 55. Rxh6
{[%clk 0:00:45]} 55... d3 {[%clk 0:00:37.3]} 56. Rh8 {[%clk 0:00:42.3]} 56...
Kd2 {[%clk 0:00:36.6]} 57. Kb4 {[%clk 0:00:41.7]} 57... Rc7 {[%clk 0:00:33.5]}
58. Rg8 {[%clk 0:00:41.9]} 58... Kc1 {[%clk 0:00:31.2]} 59. Rxg5 {[%clk
0:00:38.4]} 59... d2 {[%clk 0:00:31.5]} 60. Rg7 {[%clk 0:00:39.9]} 60... Rxg7
{[%clk 0:00:31]} 61. Ka3 {[%clk 0:00:41]} 61... d1=Q {[%clk 0:00:30.9]} 62. b4
{[%clk 0:00:42.9]} 62... Rg3# {[%clk 0:00:29.4]} 0-1

[Event "*** Titled Tuesday Blitz"]
[Site "Chess.com"]
[Date "2018.12.04"]
[Round "8"]
[White "DeviatkinAndrey"]
[Black "Vuk2000"]
[Result "1/2-1/2"]
[WhiteElo "2675"]
[BlackElo "2654"]
[TimeControl "180+2"]
[EndTime "14:54:17 PST"]
[Termination "Game drawn by agreement"]

1. d4 {[%clk 0:03:01.9]} 1... Nf6 {[%clk 0:03:00.7]} 2. Nf3 {[%clk 0:03:02.5]}
2... e6 {[%clk 0:03:01.9]} 3. Bg5 {[%clk 0:02:59.3]} 3... c5 {[%clk 0:02:59.8]}
4. e3 {[%clk 0:02:59.9]} 4... Nc6 {[%clk 0:02:59.7]} 5. Nbd2 {[%clk 0:02:58.9]}
5... Be7 {[%clk 0:02:58.8]} 6. c3 {[%clk 0:02:59.7]} 6... d5 {[%clk 0:02:56.5]}
7. Bd3 {[%clk 0:02:58.8]} 7... O-O {[%clk 0:02:56.9]} 8. O-O {[%clk 0:02:44.3]}
8... b6 {[%clk 0:02:57.6]} 9. dxc5 {[%clk 0:02:30.1]} 9... bxc5 {[%clk
0:02:56.7]} 10. e4 {[%clk 0:02:31.5]} 10... Bb7 {[%clk 0:02:41.2]} 11. Re1
{[%clk 0:02:20.1]} 11... h6 {[%clk 0:02:41.5]} 12. Bh4 {[%clk 0:02:18.9]} 12...
Qb6 {[%clk 0:02:39.9]} 13. e5 {[%clk 0:02:18.3]} 13... Nd7 {[%clk 0:02:37.7]}
14. Bg3 {[%clk 0:02:01.5]} 14... Rab8 {[%clk 0:02:32.1]} 15. Rb1 {[%clk
0:01:43.7]} 15... Ba6 {[%clk 0:02:30.4]} 16. Bc2 {[%clk 0:01:44.7]} 16... c4
{[%clk 0:02:29.2]} 17. b4 {[%clk 0:01:19.7]} 17... cxb3 {[%clk 0:02:25.8]} 18.
axb3 {[%clk 0:01:18.4]} 18... Qc5 {[%clk 0:02:22.7]} 19. Re3 {[%clk 0:01:18.8]}
19... Rfc8 {[%clk 0:02:16.3]} 20. b4 {[%clk 0:01:18.8]} 20... Nxb4 {[%clk
0:02:12.4]} 21. Nb3 {[%clk 0:00:46.9]} 21... Qc7 {[%clk 0:01:39]} 22. cxb4
{[%clk 0:00:37.5]} 22... Qxc2 {[%clk 0:01:35.6]} 23. Qxc2 {[%clk 0:00:38.4]}
23... Rxc2 {[%clk 0:01:37.5]} 24. Nbd4 {[%clk 0:00:36.5]} 24... Rxb4 {[%clk
0:01:32.9]} 25. Ra1 {[%clk 0:00:28.8]} 25... Rcc4 {[%clk 0:01:23.3]} 26. Rxa6
{[%clk 0:00:20.4]} 26... Rb1+ {[%clk 0:01:23.2]} 27. Re1 {[%clk 0:00:21.1]}
27... Rxe1+ {[%clk 0:01:23.5]} 28. Nxe1 {[%clk 0:00:22.3]} 28... Rxd4 {[%clk
0:01:24.9]} 29. Rxa7 {[%clk 0:00:23.7]} 29... Rd1 {[%clk 0:01:25.7]} 30. Kf1
{[%clk 0:00:19.2]} 30... Bb4 {[%clk 0:01:24.7]} 31. f4 {[%clk 0:00:20.4]} 31...
Nc5 {[%clk 0:01:18.7]} 32. Ke2 {[%clk 0:00:19.6]} 32... Rd2+ {[%clk 0:01:19.8]}
33. Kf1 {[%clk 0:00:20.9]} 33... Ne4 {[%clk 0:01:20]} 34. Nf3 {[%clk 0:00:22.1]}
34... Rc2 {[%clk 0:01:10.6]} 35. Ra8+ {[%clk 0:00:18.8]} 35... Kh7 {[%clk
0:01:11.4]} 36. Rb8 {[%clk 0:00:18.6]} 36... Bc5 {[%clk 0:01:11]} 37. Be1 {[%clk
0:00:18.8]} 37... Bf2 {[%clk 0:01:07.5]} 38. Bxf2 {[%clk 0:00:11.3]} 38... Rxf2+
{[%clk 0:01:04.2]} 39. Kg1 {[%clk 0:00:13.2]} 39... Rc2 {[%clk 0:01:04.7]} 40.
g3 {[%clk 0:00:10.7]} 40... g5 {[%clk 0:01:04.4]} 41. fxg5 {[%clk 0:00:07.4]}
41... hxg5 {[%clk 0:01:06.3]} 42. g4 {[%clk 0:00:08.2]} 42... Kg6 {[%clk
0:01:05.6]} 43. Rg8+ {[%clk 0:00:08.9]} 43... Kh7 {[%clk 0:01:05.6]} 44. Rd8
{[%clk 0:00:08.5]} 44... Kg7 {[%clk 0:01:06.4]} 45. Rd7 {[%clk 0:00:09.1]} 45...
Rc3 {[%clk 0:01:06.3]} 46. Kg2 {[%clk 0:00:09.7]} 46... Kg6 {[%clk 0:01:06.4]}
47. Rd8 {[%clk 0:00:10.5]} 47... Rc2+ {[%clk 0:01:07.2]} 48. Kg1 {[%clk
0:00:11.5]} 48... Nd2 {[%clk 0:01:07.9]} 49. Nd4 {[%clk 0:00:09]} 49... Rc1+
{[%clk 0:01:08.3]} 50. Kg2 {[%clk 0:00:09.8]} 50... Nc4 {[%clk 0:01:09.5]} 51.
Nc6 {[%clk 0:00:07.6]} 51... Ne3+ {[%clk 0:01:08.8]} 52. Kf3 {[%clk 0:00:08.8]}
52... Rxc6 {[%clk 0:01:10.2]} 53. Kxe3 {[%clk 0:00:10.2]} 53... Rc4 {[%clk
0:01:11.7]} 54. Rg8+ {[%clk 0:00:04.9]} 54... Kh6 {[%clk 0:01:12.3]} 55. h3
{[%clk 0:00:06.4]} 55... Re4+ {[%clk 0:01:13.3]} 56. Kd3 {[%clk 0:00:06.1]}
56... Rxe5 {[%clk 0:01:15.2]} 57. Kd4 {[%clk 0:00:07.5]} 57... Re4+ {[%clk
0:01:16.6]} 58. Kc5 {[%clk 0:00:09.1]} 58... Ra4 {[%clk 0:01:13.7]} 59. Kd6
{[%clk 0:00:10]} 59... Ra7 {[%clk 0:01:15.4]} 60. Ke5 {[%clk 0:00:10.7]} 60...
Kh7 {[%clk 0:01:13.7]} 61. Rxg5 {[%clk 0:00:11.6]} 61... Rd7 {[%clk 0:01:15.3]}
62. Kf6 {[%clk 0:00:08.2]} 62... d4 {[%clk 0:01:15.5]} 63. Rh5+ {[%clk
0:00:09.5]} 63... Kg8 {[%clk 0:01:16.9]} 64. Rg5+ {[%clk 0:00:10.6]} 64... Kh7
{[%clk 0:01:18.1]} 65. Rh5+ {[%clk 0:00:11.9]} 1/2-1/2

[Event "*** Titled Tuesday Blitz"]
[Site "Chess.com"]
[Date "2018.12.04"]
[Round "8"]
[White "SCIM"]
[Black "vpantev"]
[Result "0-1"]
[WhiteElo "2434"]
[BlackElo "2616"]
[TimeControl "180+2"]
[EndTime "14:54:20 PST"]
[Termination "vpantev won by resignation"]

1. d4 {[%clk 0:03:01.9]} 1... Nf6 {[%clk 0:03:00.4]} 2. c4 {[%clk 0:03:02.4]}
2... e6 {[%clk 0:03:01.6]} 3. g3 {[%clk 0:03:02.3]} 3... Bb4+ {[%clk 0:03:02.8]}
4. Bd2 {[%clk 0:03:00.9]} 4... c5 {[%clk 0:03:03.8]} 5. Bxb4 {[%clk 0:02:53.1]}
5... cxb4 {[%clk 0:03:04.4]} 6. Bg2 {[%clk 0:02:53.3]} 6... O-O {[%clk
0:03:05.1]} 7. e4 {[%clk 0:02:50.3]} 7... d6 {[%clk 0:03:05.2]} 8. Ne2 {[%clk
0:02:49.6]} 8... Qc7 {[%clk 0:03:06.1]} 9. Nd2 {[%clk 0:02:38.2]} 9... e5 {[%clk
0:03:06.5]} 10. O-O {[%clk 0:02:37.7]} 10... a5 {[%clk 0:03:06.7]} 11. a3 {[%clk
0:02:35.5]} 11... Na6 {[%clk 0:03:07.1]} 12. h3 {[%clk 0:02:24.2]} 12... Be6
{[%clk 0:03:06.6]} 13. Qb3 {[%clk 0:02:19.9]} 13... b5 {[%clk 0:03:06.3]} 14. d5
{[%clk 0:02:17.7]} 14... Bd7 {[%clk 0:03:00.2]} 15. Rfc1 {[%clk 0:02:15.8]}
15... Nc5 {[%clk 0:03:00.7]} 16. Qe3 {[%clk 0:02:15.8]} 16... bxa3 {[%clk
0:02:48.2]} 17. Rxa3 {[%clk 0:02:02.1]} 17... b4 {[%clk 0:02:49.1]} 18. Raa1
{[%clk 0:02:01.6]} 18... a4 {[%clk 0:02:50.4]} 19. f4 {[%clk 0:01:56.1]} 19...
Rfe8 {[%clk 0:02:50]} 20. f5 {[%clk 0:01:54.9]} 20... h6 {[%clk 0:02:38.9]} 21.
g4 {[%clk 0:01:54.2]} 21... Kh7 {[%clk 0:02:32.7]} 22. Kh2 {[%clk 0:01:53.9]}
22... g5 {[%clk 0:02:30.8]} 23. fxg6+ {[%clk 0:01:50.9]} 23... fxg6 {[%clk
0:02:31.5]} 24. Rf1 {[%clk 0:01:46.6]} 24... Rf8 {[%clk 0:02:31.8]} 25. Rf2
{[%clk 0:01:41.6]} 25... Kg7 {[%clk 0:02:30.4]} 26. Raf1 {[%clk 0:01:38.8]}
26... Ng8 {[%clk 0:02:31.3]} 27. g5 {[%clk 0:01:28.1]} 27... hxg5 {[%clk
0:02:22]} 28. Qxg5 {[%clk 0:01:26.9]} 28... Rxf2 {[%clk 0:02:20.7]} 29. Rxf2
{[%clk 0:01:26.8]} 29... Qd8 {[%clk 0:02:21.9]} 30. Qg3 {[%clk 0:00:46.7]} 30...
Qe7 {[%clk 0:01:46.1]} 31. Bf3 {[%clk 0:00:36.4]} 31... Rf8 {[%clk 0:01:46.5]}
32. Rg2 {[%clk 0:00:36.4]} 32... Qf6 {[%clk 0:01:47.6]} 33. Bh5 {[%clk
0:00:32.3]} 33... Ne7 {[%clk 0:01:48.5]} 34. Bg4 {[%clk 0:00:30.2]} 34... Bxg4
{[%clk 0:01:42.9]} 35. Qxg4 {[%clk 0:00:29.1]} 35... Rh8 {[%clk 0:01:41.2]} 36.
Ng3 {[%clk 0:00:26.1]} 36... Qf4 {[%clk 0:01:32.5]} 37. Qxf4 {[%clk 0:00:21.4]}
37... exf4 {[%clk 0:01:33.3]} 38. Ne2 {[%clk 0:00:23]} 38... a3 {[%clk 0:01:28]}
39. bxa3 {[%clk 0:00:23.5]} 39... bxa3 {[%clk 0:01:29]} 40. Nxf4 {[%clk
0:00:24.9]} 40... a2 {[%clk 0:01:27.1]} 41. Rg1 {[%clk 0:00:26]} 41... Rf8
{[%clk 0:01:26.6]} 42. Kg3 {[%clk 0:00:24.7]} 42... Rb8 {[%clk 0:01:24.1]} 43.
Ra1 {[%clk 0:00:24.2]} 43... Rb2 {[%clk 0:01:23.8]} 44. Nf3 {[%clk 0:00:20.9]}
44... Nb3 {[%clk 0:01:23.7]} 45. Ne6+ {[%clk 0:00:21.3]} 45... Kg8 {[%clk
0:01:23.4]} 46. c5 {[%clk 0:00:21.6]} 46... dxc5 {[%clk 0:01:23.4]} 47. Rxa2
{[%clk 0:00:15.9]} 47... Rxa2 {[%clk 0:01:23.6]} 48. d6 {[%clk 0:00:17.5]} 48...
Nc6 {[%clk 0:01:24.5]} 49. d7 {[%clk 0:00:18.3]} 49... Ra8 {[%clk 0:01:23.2]}
50. Ne5 {[%clk 0:00:17.1]} 50... Nxe5 {[%clk 0:01:22.9]} 51. d8=Q+ {[%clk
0:00:17.3]} 51... Rxd8 {[%clk 0:01:23.9]} 52. Nxd8 {[%clk 0:00:18.7]} 52... c4
{[%clk 0:01:25.4]} 53. Ne6 {[%clk 0:00:13.3]} 53... c3 {[%clk 0:01:25.1]} 54.
Nf4 {[%clk 0:00:14.8]} 54... c2 {[%clk 0:01:24.6]} 55. Ne2 {[%clk 0:00:16.3]}
55... c1=Q {[%clk 0:01:25.2]} 56. Nxc1 {[%clk 0:00:17.2]} 56... Nxc1 {[%clk
0:01:26]} 57. Kf4 {[%clk 0:00:18.8]} 57... Nf7 {[%clk 0:01:26]} 58. e5 {[%clk
0:00:18.8]} 58... Kg7 {[%clk 0:01:26.8]} 59. e6 {[%clk 0:00:19.4]} 59... Nd6
{[%clk 0:01:27.8]} 60. h4 {[%clk 0:00:13]} 60... Kh6 {[%clk 0:01:12]} 61. Ke5
{[%clk 0:00:12.2]} 61... Ne8 {[%clk 0:01:13.1]} 62. e7 {[%clk 0:00:12.6]} 62...
Ng7 {[%clk 0:01:13.9]} 63. Kf6 {[%clk 0:00:12.2]} 63... Nd3 {[%clk 0:01:14.4]}
64. Kf7 {[%clk 0:00:13.1]} 64... Nf4 {[%clk 0:01:14.8]} 65. Kg8 {[%clk
0:00:12.4]} 65... Ng2 {[%clk 0:01:13.5]} 66. h5 {[%clk 0:00:09.6]} 66... gxh5
{[%clk 0:01:13.7]} 0-1